[Event "*** Titled Tuesday Blitz"]
[Site "Chess.com"]
[Date "2021.02.02"]
[Round "3"]
[White "TregubovP"]
[Black "Lady_Nika"]
[Result "1-0"]
[WhiteElo "2583"]
[BlackElo "2392"]
[TimeControl "180+1"]
[EndTime "10:27:48 PST"]
[Termination "TregubovP won by resignation"]

1. e4 {[%clk 0:03:00.9]} 1... e6 {[%clk 0:02:46.3]} 2. d4 {[%clk 0:03:00.7]}
2... d5 {[%clk 0:02:46]} 3. exd5 {[%clk 0:03:01.2]} 3... exd5 {[%clk 0:02:45.3]}
4. Nf3 {[%clk 0:03:01.7]} 4... Nf6 {[%clk 0:02:45.7]} 5. Bd3 {[%clk 0:03:01.7]}
5... Bd6 {[%clk 0:02:45.9]} 6. Qe2+ {[%clk 0:03:01.8]} 6... Be6 {[%clk
0:02:44.7]} 7. c4 {[%clk 0:02:55.5]} 7... Bb4+ {[%clk 0:02:42.7]} 8. Nc3 {[%clk
0:02:52.1]} 8... O-O {[%clk 0:02:42.1]} 9. c5 {[%clk 0:02:42.9]} 9... b6 {[%clk
0:02:37.3]} 10. O-O {[%clk 0:02:35.8]} 10... bxc5 {[%clk 0:02:36.5]} 11. dxc5
{[%clk 0:02:35]} 11... Bxc5 {[%clk 0:02:36.4]} 12. Bg5 {[%clk 0:02:35.5]} 12...
Be7 {[%clk 0:02:35]} 13. Rac1 {[%clk 0:02:30.8]} 13... c5 {[%clk 0:02:34.4]} 14.
Bb1 {[%clk 0:02:22.2]} 14... d4 {[%clk 0:02:31.2]} 15. Na4 {[%clk 0:02:20.6]}
15... c4 {[%clk 0:02:25.6]} 16. Bxf6 {[%clk 0:02:15.5]} 16... Bxf6 {[%clk
0:02:24.4]} 17. Qe4 {[%clk 0:02:16]} 17... d3 {[%clk 0:02:06]} 18. Qxa8 {[%clk
0:02:14]} 18... Qa5 {[%clk 0:02:04.8]} 19. Nc3 {[%clk 0:02:11.1]} 19... Bxc3
{[%clk 0:02:04.5]} 20. Rxc3 {[%clk 0:02:06.1]} 20... Bd5 {[%clk 0:02:03.6]} 21.
Ra3 {[%clk 0:02:06.4]} 21... Qxa3 {[%clk 0:02:00.9]} 22. Qxd5 {[%clk 0:02:06.3]}
22... Qxb2 {[%clk 0:01:59.9]} 23. Qxc4 {[%clk 0:02:05.2]} 23... Rd8 {[%clk
0:01:57.8]} 24. Bxd3 {[%clk 0:02:03.7]} 24... Nd7 {[%clk 0:01:56.2]} 25. Rd1
{[%clk 0:01:58.8]} 25... Qf6 {[%clk 0:01:48.4]} 26. Qd4 {[%clk 0:01:46.6]} 26...
Qh6 {[%clk 0:01:45.9]} 27. Bf5 {[%clk 0:01:44.2]} 1-0

[Event "*** Titled Tuesday Blitz"]
[Site "Chess.com"]
[Date "2021.02.02"]
[Round "3"]
[White "muchojogo"]
[Black "ChessLover0108"]
[Result "0-1"]
[WhiteElo "2461"]
[BlackElo "2845"]
[TimeControl "180+1"]
[EndTime "10:27:53 PST"]
[Termination "ChessLover0108 won by resignation"]

1. e4 {[%clk 0:03:00.9]} 1... c5 {[%clk 0:02:59.5]} 2. Nf3 {[%clk 0:03:01.1]}
2... d6 {[%clk 0:02:58.9]} 3. d4 {[%clk 0:03:01.4]} 3... cxd4 {[%clk 0:02:58.9]}
4. Nxd4 {[%clk 0:03:02.3]} 4... Nf6 {[%clk 0:02:59.2]} 5. Nc3 {[%clk 0:03:02.9]}
5... a6 {[%clk 0:02:59.6]} 6. Bg5 {[%clk 0:03:03.4]} 6... Nbd7 {[%clk
0:02:59.6]} 7. Qe2 {[%clk 0:02:43.8]} 7... h6 {[%clk 0:02:56.7]} 8. Bh4 {[%clk
0:02:31.2]} 8... b5 {[%clk 0:02:54.4]} 9. f4 {[%clk 0:02:27.5]} 9... g5 {[%clk
0:02:47]} 10. fxg5 {[%clk 0:02:18.9]} 10... hxg5 {[%clk 0:02:47.9]} 11. Bxg5
{[%clk 0:02:19.8]} 11... Bb7 {[%clk 0:02:48.3]} 12. O-O-O {[%clk 0:02:19.4]}
12... Rc8 {[%clk 0:02:48.4]} 13. Nd5 {[%clk 0:02:15.9]} 13... Nxd5 {[%clk
0:02:38.1]} 14. exd5 {[%clk 0:02:14.5]} 14... Rc5 {[%clk 0:02:37.4]} 15. h4
{[%clk 0:01:46]} 15... Rxd5 {[%clk 0:02:16.1]} 16. Kb1 {[%clk 0:01:38.5]} 16...
Rxg5 {[%clk 0:02:12.1]} 17. Rh3 {[%clk 0:01:16.7]} 17... Re5 {[%clk 0:02:10.1]}
18. Qf2 {[%clk 0:01:17]} 18... Nf6 {[%clk 0:02:08.1]} 19. Bd3 {[%clk 0:01:11.5]}
19... e6 {[%clk 0:02:05.4]} 0-1

[Event "*** Titled Tuesday Blitz"]
[Site "Chess.com"]
[Date "2021.02.02"]
[Round "3"]
[White "HackWithBlack"]
[Black "Boudicca64"]
[Result "1-0"]
[WhiteElo "2292"]
[BlackElo "1879"]
[TimeControl "180+1"]
[EndTime "10:27:53 PST"]
[Termination "HackWithBlack won by resignation"]

1. e4 {[%clk 0:03:00.1]} 1... Nc6 {[%clk 0:02:58.2]} 2. Nc3 {[%clk 0:02:59.7]}
2... Nf6 {[%clk 0:02:54.4]} 3. Bc4 {[%clk 0:02:59.3]} 3... e6 {[%clk 0:02:52.6]}
4. d4 {[%clk 0:02:58.9]} 4... d5 {[%clk 0:02:51.7]} 5. exd5 {[%clk 0:02:58.4]}
5... exd5 {[%clk 0:02:51]} 6. Bb3 {[%clk 0:02:55.1]} 6... Be7 {[%clk 0:02:48.4]}
7. Bf4 {[%clk 0:02:54.5]} 7... a6 {[%clk 0:02:43.9]} 8. Nf3 {[%clk 0:02:53.9]}
8... Bg4 {[%clk 0:02:39.7]} 9. Be5 {[%clk 0:02:48.8]} 9... O-O {[%clk
0:02:26.9]} 10. O-O {[%clk 0:02:47.9]} 10... Qd7 {[%clk 0:02:24.9]} 11. h3
{[%clk 0:02:30.8]} 11... Bh5 {[%clk 0:02:22.7]} 12. Qd3 {[%clk 0:02:20.5]} 12...
Bg6 {[%clk 0:02:20.5]} 13. Qe3 {[%clk 0:02:13.6]} 13... Ne4 {[%clk 0:02:14.4]}
14. Nxd5 {[%clk 0:02:11.2]} 14... Nxe5 {[%clk 0:02:10.8]} 15. dxe5 {[%clk
0:02:00.7]} 15... Bc5 {[%clk 0:02:04.9]} 16. Qf4 {[%clk 0:01:54.2]} 16... Rad8
{[%clk 0:01:49.4]} 17. Rad1 {[%clk 0:01:53.8]} 17... Qc6 {[%clk 0:01:48]} 18.
Nd4 {[%clk 0:01:44.7]} 18... Bxd4 {[%clk 0:01:17.4]} 19. Ne7+ {[%clk 0:01:44]}
1-0

[Event "*** Titled Tuesday Blitz"]
[Site "Chess.com"]
[Date "2021.02.02"]
[Round "3"]
[White "CM_rui"]
[Black "cukin84"]
[Result "1-0"]
[WhiteElo "2345"]
[BlackElo "2127"]
[TimeControl "180+1"]
[EndTime "10:27:57 PST"]
[Termination "CM_rui won by checkmate"]

1. e4 {[%clk 0:03:00.9]} 1... c6 {[%clk 0:02:59.4]} 2. d4 {[%clk 0:03:00.8]}
2... d5 {[%clk 0:02:59.7]} 3. Nc3 {[%clk 0:03:01.7]} 3... a6 {[%clk 0:02:59.3]}
4. Nf3 {[%clk 0:03:00.6]} 4... Bg4 {[%clk 0:02:58.4]} 5. Be2 {[%clk 0:02:56]}
5... e6 {[%clk 0:02:58.4]} 6. O-O {[%clk 0:02:56]} 6... Nf6 {[%clk 0:02:57.8]}
7. e5 {[%clk 0:02:56.1]} 7... Nfd7 {[%clk 0:02:57.8]} 8. Ne1 {[%clk 0:02:49.1]}
8... Bxe2 {[%clk 0:02:56.9]} 9. Qxe2 {[%clk 0:02:50]} 9... c5 {[%clk 0:02:57.2]}
10. f4 {[%clk 0:02:32.2]} 10... cxd4 {[%clk 0:02:56.3]} 11. Nd1 {[%clk
0:02:20.2]} 11... Bc5 {[%clk 0:02:54.7]} 12. Nd3 {[%clk 0:02:19.7]} 12... g6
{[%clk 0:02:52]} 13. N1f2 {[%clk 0:02:11.6]} 13... Be7 {[%clk 0:02:44.1]} 14. a4
{[%clk 0:02:05.8]} 14... Nc6 {[%clk 0:02:43]} 15. b3 {[%clk 0:02:04.2]} 15...
Nc5 {[%clk 0:02:42.4]} 16. Ba3 {[%clk 0:02:01.8]} 16... Nxd3 {[%clk 0:02:41.7]}
17. Bxe7 {[%clk 0:01:55.6]} 17... Qxe7 {[%clk 0:02:41.5]} 18. cxd3 {[%clk
0:01:49]} 18... O-O {[%clk 0:02:36.5]} 19. Ng4 {[%clk 0:01:46.9]} 19... Qh4
{[%clk 0:02:27.8]} 20. Nf6+ {[%clk 0:01:34.3]} 20... Kh8 {[%clk 0:02:18.7]} 21.
Rf3 {[%clk 0:01:33.8]} 21... h5 {[%clk 0:02:03.3]} 22. Rh3 {[%clk 0:01:25.5]}
22... Qxf4 {[%clk 0:02:01.5]} 23. Rxh5+ {[%clk 0:01:23.8]} 23... gxh5 {[%clk
0:01:42.9]} 24. Qxh5+ {[%clk 0:01:24.7]} 24... Kg7 {[%clk 0:01:42.5]} 25. Qh7#
{[%clk 0:01:24.7]} 1-0

[Event "*** Titled Tuesday Blitz"]
[Site "Chess.com"]
[Date "2021.02.02"]
[Round "3"]
[White "Godzillator"]
[Black "SaqoChess_Twitch"]
[Result "0-1"]
[WhiteElo "2313"]
[BlackElo "2462"]
[TimeControl "180+1"]
[EndTime "10:28:23 PST"]
[Termination "SaqoChess_Twitch won by resignation"]

1. d4 {[%clk 0:03:00.9]} 1... d5 {[%clk 0:02:59.4]} 2. c4 {[%clk 0:03:01.2]}
2... e6 {[%clk 0:02:59.4]} 3. cxd5 {[%clk 0:03:01.6]} 3... exd5 {[%clk
0:02:59.5]} 4. Nc3 {[%clk 0:03:02.3]} 4... Nf6 {[%clk 0:02:59.9]} 5. Bg5 {[%clk
0:03:02.5]} 5... c6 {[%clk 0:03:00.5]} 6. e3 {[%clk 0:03:02.5]} 6... Qb6 {[%clk
0:03:01.1]} 7. Qc2 {[%clk 0:03:01.3]} 7... Ne4 {[%clk 0:03:01.2]} 8. Nxe4 {[%clk
0:03:00.7]} 8... dxe4 {[%clk 0:03:02.1]} 9. Qxe4+ {[%clk 0:02:59.5]} 9... Be6
{[%clk 0:03:02.1]} 10. O-O-O {[%clk 0:02:33.9]} 10... Qa5 {[%clk 0:03:01.1]} 11.
d5 {[%clk 0:02:25.4]} 11... cxd5 {[%clk 0:02:54.5]} 12. Qd3 {[%clk 0:02:17.8]}
12... Qxa2 {[%clk 0:02:34.1]} 13. Qb5+ {[%clk 0:02:04.7]} 13... Nc6 {[%clk
0:02:33.2]} 14. Qxb7 {[%clk 0:01:59.6]} 14... Rc8 {[%clk 0:02:32.4]} 15. Bb5
{[%clk 0:01:52.7]} 15... Bd7 {[%clk 0:02:28]} 16. Kd2 {[%clk 0:01:19.3]} 16...
Qa5+ {[%clk 0:02:12.3]} 17. Ke2 {[%clk 0:01:02.6]} 17... Rb8 {[%clk 0:02:08.2]}
18. Qxd7+ {[%clk 0:00:46.3]} 18... Kxd7 {[%clk 0:02:08]} 19. Rxd5+ {[%clk
0:00:46.3]} 19... Ke6 {[%clk 0:01:55.8]} 20. Bxc6 {[%clk 0:00:45.7]} 20... Qa6+
{[%clk 0:01:55.8]} 21. Bb5 {[%clk 0:00:45.6]} 21... Rxb5 {[%clk 0:01:55.3]} 22.
Rxb5 {[%clk 0:00:43.7]} 22... Qxb5+ {[%clk 0:01:56.2]} 0-1

[Event "*** Titled Tuesday Blitz"]
[Site "Chess.com"]
[Date "2021.02.02"]
[Round "3"]
[White "IljaJoke"]
[Black "frederiksvane"]
[Result "0-1"]
[WhiteElo "2507"]
[BlackElo "2767"]
[TimeControl "180+1"]
[EndTime "10:28:24 PST"]
[Termination "frederiksvane won by resignation"]

1. d4 {[%clk 0:03:00.9]} 1... Nf6 {[%clk 0:02:59.8]} 2. c4 {[%clk 0:03:00.6]}
2... e6 {[%clk 0:02:59.1]} 3. g3 {[%clk 0:03:00.9]} 3... d5 {[%clk 0:02:56.6]}
4. Nf3 {[%clk 0:03:00.7]} 4... Bb4+ {[%clk 0:02:56.8]} 5. Bd2 {[%clk 0:03:00.3]}
5... Bd6 {[%clk 0:02:56.5]} 6. Bg2 {[%clk 0:02:59]} 6... O-O {[%clk 0:02:56.7]}
7. O-O {[%clk 0:02:59.2]} 7... Nbd7 {[%clk 0:02:53.6]} 8. Qc2 {[%clk 0:02:58.8]}
8... c6 {[%clk 0:02:52.1]} 9. Rd1 {[%clk 0:02:58.1]} 9... Ne4 {[%clk 0:02:51.8]}
10. Ne1 {[%clk 0:02:58]} 10... f5 {[%clk 0:02:51.4]} 11. Nd3 {[%clk 0:02:42.3]}
11... Ndf6 {[%clk 0:02:19.9]} 12. Bb4 {[%clk 0:02:27.8]} 12... Bxb4 {[%clk
0:02:13.8]} 13. Nxb4 {[%clk 0:02:28.7]} 13... Qb6 {[%clk 0:01:55.8]} 14. Nd3
{[%clk 0:02:24.8]} 14... Qxd4 {[%clk 0:01:49.3]} 15. c5 {[%clk 0:01:59.5]} 15...
Ng4 {[%clk 0:01:36.5]} 16. e3 {[%clk 0:01:58.7]} 16... Qf6 {[%clk 0:01:32.9]}
17. h3 {[%clk 0:01:51.4]} 17... Ne5 {[%clk 0:01:28.5]} 18. Nxe5 {[%clk
0:01:49.7]} 18... Qxe5 {[%clk 0:01:29.4]} 19. Nd2 {[%clk 0:01:50.2]} 19... Bd7
{[%clk 0:01:25.1]} 20. b4 {[%clk 0:01:45.5]} 20... Be8 {[%clk 0:01:17.9]} 21.
Qd3 {[%clk 0:01:38.5]} 21... Bh5 {[%clk 0:01:14.5]} 22. Rdc1 {[%clk 0:01:37.7]}
22... Rad8 {[%clk 0:01:06.2]} 23. Qd4 {[%clk 0:01:37]} 23... Qxd4 {[%clk
0:01:05.6]} 24. exd4 {[%clk 0:01:37.3]} 24... Nxd2 {[%clk 0:01:06]} 0-1

[Event "*** Titled Tuesday Blitz"]
[Site "Chess.com"]
[Date "2021.02.02"]
[Round "3"]
[White "NaciSAN"]
[Black "Ziyamammadov"]
[Result "1-0"]
[WhiteElo "2288"]
[BlackElo "1738"]
[TimeControl "180+1"]
[EndTime "10:28:31 PST"]
[Termination "NaciSAN won by checkmate"]

1. e4 {[%clk 0:03:00.9]} 1... e6 {[%clk 0:03:00.4]} 2. d4 {[%clk 0:03:00.5]}
2... d5 {[%clk 0:03:00.8]} 3. e5 {[%clk 0:03:00.8]} 3... c5 {[%clk 0:03:00.5]}
4. c3 {[%clk 0:03:01.4]} 4... Nc6 {[%clk 0:03:00.8]} 5. Nf3 {[%clk 0:03:01.9]}
5... Qb6 {[%clk 0:03:00.3]} 6. Na3 {[%clk 0:03:01.5]} 6... cxd4 {[%clk
0:02:59.8]} 7. cxd4 {[%clk 0:03:02.4]} 7... Bxa3 {[%clk 0:02:59.4]} 8. bxa3
{[%clk 0:03:03.3]} 8... Nge7 {[%clk 0:02:59.4]} 9. Bd3 {[%clk 0:02:59.6]} 9...
Bd7 {[%clk 0:02:56.8]} 10. Rb1 {[%clk 0:02:55.8]} 10... Qa5+ {[%clk 0:02:54.4]}
11. Bd2 {[%clk 0:02:55.9]} 11... Qc7 {[%clk 0:02:32.8]} 12. O-O {[%clk
0:02:53.4]} 12... b6 {[%clk 0:02:31.5]} 13. Rc1 {[%clk 0:02:49.5]} 13... Qb7
{[%clk 0:02:23]} 14. Qe2 {[%clk 0:02:49.4]} 14... Nf5 {[%clk 0:02:17.1]} 15. Bc3
{[%clk 0:02:34.2]} 15... Nce7 {[%clk 0:02:04.3]} 16. g4 {[%clk 0:02:33.2]} 16...
Nh6 {[%clk 0:01:57.9]} 17. h3 {[%clk 0:02:33.2]} 17... f5 {[%clk 0:01:51]} 18.
exf6 {[%clk 0:02:30]} 18... gxf6 {[%clk 0:01:46.6]} 19. Bb4 {[%clk 0:02:15.9]}
19... Ng6 {[%clk 0:01:41.2]} 20. Bd6 {[%clk 0:02:13]} 20... Rc8 {[%clk
0:01:39.1]} 21. Ba6 {[%clk 0:02:11.6]} 21... Qa8 {[%clk 0:01:31.7]} 22. Bxc8
{[%clk 0:02:10.4]} 22... Bxc8 {[%clk 0:01:32.6]} 23. Rc7 {[%clk 0:02:04.2]}
23... Nf7 {[%clk 0:01:30.3]} 24. Qb5+ {[%clk 0:01:32.7]} 24... Kd8 {[%clk
0:01:19.4]} 25. Rxf7 {[%clk 0:01:32.3]} 25... Re8 {[%clk 0:01:08.5]} 26. Bc7#
{[%clk 0:01:31.7]} 1-0

[Event "*** Titled Tuesday Blitz"]
[Site "Chess.com"]
[Date "2021.02.02"]
[Round "3"]
[White "manitodeplomo"]
[Black "Msb2"]
[Result "0-1"]
[WhiteElo "2646"]
[BlackElo "2901"]
[TimeControl "180+1"]
[EndTime "10:28:32 PST"]
[Termination "Msb2 won by resignation"]

1. Nc3 {[%clk 0:02:43.9]} 1... d5 {[%clk 0:02:58.4]} 2. d4 {[%clk 0:02:44.8]}
2... Nf6 {[%clk 0:02:56.7]} 3. Bg5 {[%clk 0:02:44.3]} 3... e6 {[%clk 0:02:56.2]}
4. Qd3 {[%clk 0:02:43.2]} 4... Be7 {[%clk 0:02:51]} 5. O-O-O {[%clk 0:02:40.1]}
5... Nbd7 {[%clk 0:02:47.2]} 6. Bxf6 {[%clk 0:02:36.3]} 6... Nxf6 {[%clk
0:02:43.6]} 7. e4 {[%clk 0:02:36.3]} 7... O-O {[%clk 0:02:38.7]} 8. e5 {[%clk
0:02:31.5]} 8... Nd7 {[%clk 0:02:38.7]} 9. Nce2 {[%clk 0:02:31.7]} 9... c5
{[%clk 0:02:38.3]} 10. c3 {[%clk 0:02:31.7]} 10... b5 {[%clk 0:02:37.9]} 11. Nf3
{[%clk 0:02:14]} 11... b4 {[%clk 0:02:35.7]} 12. Nf4 {[%clk 0:02:03.6]} 12...
Qa5 {[%clk 0:02:28.3]} 13. Kb1 {[%clk 0:01:58]} 13... Rb8 {[%clk 0:02:27.1]} 14.
c4 {[%clk 0:01:56.5]} 14... Ba6 {[%clk 0:02:21.3]} 15. Qc2 {[%clk 0:01:55.8]}
15... dxc4 {[%clk 0:02:04]} 16. Bxc4 {[%clk 0:01:51.6]} 16... Bxc4 {[%clk
0:02:03.1]} 17. Qxc4 {[%clk 0:01:52.2]} 17... Nb6 {[%clk 0:02:03.7]} 18. Qc2
{[%clk 0:01:46.9]} 18... c4 {[%clk 0:02:03.5]} 19. Rd2 {[%clk 0:01:08.4]} 19...
Rfc8 {[%clk 0:01:54.6]} 20. h4 {[%clk 0:00:42.4]} 20... b3 {[%clk 0:01:51.7]}
21. axb3 {[%clk 0:00:41.4]} 21... cxb3 {[%clk 0:01:52.6]} 22. Qxb3 {[%clk
0:00:42.3]} 22... Nc4 {[%clk 0:01:52.6]} 0-1

[Event "*** Titled Tuesday Blitz"]
[Site "Chess.com"]
[Date "2021.02.02"]
[Round "3"]
[White "FMKonstantin_Twitch"]
[Black "LiamVrolijk"]
[Result "0-1"]
[WhiteElo "2614"]
[BlackElo "2841"]
[TimeControl "180+1"]
[EndTime "10:28:37 PST"]
[Termination "LiamVrolijk won by resignation"]

1. d4 {[%clk 0:02:51.7]} 1... Nf6 {[%clk 0:02:59.8]} 2. Bf4 {[%clk 0:02:51.2]}
2... c5 {[%clk 0:02:59.2]} 3. e3 {[%clk 0:02:51.4]} 3... Nd5 {[%clk 0:02:59.3]}
4. Bg3 {[%clk 0:02:48.7]} 4... Qb6 {[%clk 0:02:57.3]} 5. Nc3 {[%clk 0:02:41.9]}
5... Nxc3 {[%clk 0:02:56.3]} 6. bxc3 {[%clk 0:02:42.8]} 6... d6 {[%clk
0:02:56.8]} 7. Nf3 {[%clk 0:02:37.9]} 7... Qa5 {[%clk 0:02:49.9]} 8. Qd2 {[%clk
0:02:34.9]} 8... Nd7 {[%clk 0:02:49.1]} 9. Bd3 {[%clk 0:02:32.5]} 9... g6 {[%clk
0:02:45]} 10. h4 {[%clk 0:02:30.7]} 10... Nf6 {[%clk 0:02:44]} 11. O-O {[%clk
0:02:13.7]} 11... Bg7 {[%clk 0:02:36]} 12. Rfb1 {[%clk 0:02:02.9]} 12... a6
{[%clk 0:02:32.7]} 13. e4 {[%clk 0:01:41.6]} 13... c4 {[%clk 0:02:26.3]} 14.
Bxc4 {[%clk 0:01:37.7]} 14... Nxe4 {[%clk 0:02:24.4]} 15. Qf4 {[%clk 0:01:36.2]}
15... d5 {[%clk 0:02:20.7]} 16. Ng5 {[%clk 0:01:17.2]} 16... Nxg5 {[%clk
0:01:56.7]} 17. Qxg5 {[%clk 0:01:18.1]} 17... Be6 {[%clk 0:01:56.3]} 18. Rxb7
{[%clk 0:00:46.8]} 18... Bf6 {[%clk 0:01:49.8]} 19. Qf4 {[%clk 0:00:46.1]} 19...
dxc4 {[%clk 0:01:46.6]} 20. d5 {[%clk 0:00:46.3]} 20... Qxd5 {[%clk 0:01:41.9]}
21. Rb8+ {[%clk 0:00:41.9]} 21... Rxb8 {[%clk 0:01:41.9]} 22. Qxb8+ {[%clk
0:00:42.4]} 22... Qd8 {[%clk 0:01:42.5]} 0-1

[Event "*** Titled Tuesday Blitz"]
[Site "Chess.com"]
[Date "2021.02.02"]
[Round "3"]
[White "Chesstrainer1"]
[Black "MaevskiyNikolay"]
[Result "0-1"]
[WhiteElo "2400"]
[BlackElo "2592"]
[TimeControl "180+1"]
[EndTime "10:28:38 PST"]
[Termination "MaevskiyNikolay won by resignation"]

1. Nf3 {[%clk 0:02:15.7]} 1... Nc6 {[%clk 0:02:54.2]} 2. d4 {[%clk 0:02:14.7]}
2... d5 {[%clk 0:02:53.9]} 3. c4 {[%clk 0:02:13.9]} 3... Bg4 {[%clk 0:02:54.4]}
4. Nc3 {[%clk 0:02:10.9]} 4... e6 {[%clk 0:02:54]} 5. cxd5 {[%clk 0:02:06.9]}
5... exd5 {[%clk 0:02:54]} 6. Bf4 {[%clk 0:02:06.5]} 6... Bb4 {[%clk 0:02:53]}
7. e3 {[%clk 0:02:01.7]} 7... Nge7 {[%clk 0:02:52.7]} 8. Be2 {[%clk 0:01:54.3]}
8... O-O {[%clk 0:02:52.4]} 9. Rc1 {[%clk 0:01:51.4]} 9... a6 {[%clk 0:02:52]}
10. O-O {[%clk 0:01:50.6]} 10... Ng6 {[%clk 0:02:51.4]} 11. Bg3 {[%clk
0:01:49.9]} 11... Rb8 {[%clk 0:02:14.8]} 12. h3 {[%clk 0:01:46.2]} 12... Be6
{[%clk 0:02:13.1]} 13. Na4 {[%clk 0:01:43.4]} 13... Nge7 {[%clk 0:02:00.1]} 14.
Nc5 {[%clk 0:01:36.6]} 14... Bxc5 {[%clk 0:02:00.3]} 15. Rxc5 {[%clk 0:01:37.5]}
15... Qd7 {[%clk 0:01:59.3]} 16. a3 {[%clk 0:01:22.7]} 16... Rfc8 {[%clk
0:01:57.6]} 17. Qa4 {[%clk 0:01:17.5]} 17... Nf5 {[%clk 0:01:53.8]} 18. Rfc1
{[%clk 0:01:01.6]} 18... Ncxd4 {[%clk 0:01:38.3]} 19. Qxd7 {[%clk 0:00:59]}
19... Nxe2+ {[%clk 0:01:37.6]} 0-1

[Event "*** Titled Tuesday Blitz"]
[Site "Chess.com"]
[Date "2021.02.02"]
[Round "3"]
[White "seorobert1971"]
[Black "Shepherdboy"]
[Result "1/2-1/2"]
[WhiteElo "2738"]
[BlackElo "2416"]
[TimeControl "180+1"]
[EndTime "10:28:39 PST"]
[Termination "Game drawn by agreement"]

1. d4 {[%clk 0:03:00.9]} 1... Nf6 {[%clk 0:02:58.9]} 2. c4 {[%clk 0:03:01.8]}
2... g6 {[%clk 0:02:58.6]} 3. Nc3 {[%clk 0:03:02.1]} 3... d5 {[%clk 0:02:58]} 4.
Bg5 {[%clk 0:03:01.7]} 4... Ne4 {[%clk 0:02:48.3]} 5. Bh4 {[%clk 0:03:01.2]}
5... Nxc3 {[%clk 0:02:45.2]} 6. bxc3 {[%clk 0:03:02.1]} 6... dxc4 {[%clk
0:02:46]} 7. e3 {[%clk 0:03:01.8]} 7... Be6 {[%clk 0:02:41]} 8. Nh3 {[%clk
0:03:01.3]} 8... Bh6 {[%clk 0:02:26.4]} 9. Bg5 {[%clk 0:02:56.8]} 9... Bxg5
{[%clk 0:02:22]} 10. Nxg5 {[%clk 0:02:56.6]} 10... Bd5 {[%clk 0:02:22.9]} 11. e4
{[%clk 0:02:48.4]} 11... h6 {[%clk 0:02:23.3]} 12. exd5 {[%clk 0:02:48]} 12...
hxg5 {[%clk 0:02:22.5]} 13. Bxc4 {[%clk 0:02:47.9]} 13... Nd7 {[%clk 0:02:19.4]}
14. Qf3 {[%clk 0:02:47.6]} 14... O-O {[%clk 0:02:18.8]} 15. h4 {[%clk
0:02:37.3]} 15... g4 {[%clk 0:02:19.1]} 16. Qxg4 {[%clk 0:02:35.7]} 16... Nf6
{[%clk 0:02:19.4]} 17. Qf3 {[%clk 0:02:34.9]} 17... Qd6 {[%clk 0:02:15.4]} 18.
O-O {[%clk 0:02:33]} 18... c6 {[%clk 0:01:59.9]} 19. dxc6 {[%clk 0:02:28.4]}
19... Qxc6 {[%clk 0:02:00.8]} 20. Qxc6 {[%clk 0:02:26.5]} 20... bxc6 {[%clk
0:02:01.7]} 21. Rfe1 {[%clk 0:02:24.3]} 21... e6 {[%clk 0:02:00.3]} 22. Rab1
{[%clk 0:02:18.5]} 22... c5 {[%clk 0:01:48.6]} 23. dxc5 {[%clk 0:02:08.3]} 23...
Rfc8 {[%clk 0:01:49.1]} 24. Rb5 {[%clk 0:02:01.3]} 24... Rc6 {[%clk 0:01:49.2]}
25. Ra5 {[%clk 0:01:56.1]} 25... Rac8 {[%clk 0:01:45.5]} 26. Rxa7 {[%clk
0:01:47.2]} 26... Rxc5 {[%clk 0:01:45]} 27. Bb3 {[%clk 0:01:40.6]} 27... Rxc3
{[%clk 0:01:44.2]} 28. Ra4 {[%clk 0:01:37.7]} 28... Nd7 {[%clk 0:01:40.9]} 29.
Rd4 {[%clk 0:01:17.4]} 29... Nc5 {[%clk 0:01:40.6]} 30. Re3 {[%clk 0:01:16.5]}
30... Rxe3 {[%clk 0:01:33.5]} 31. fxe3 {[%clk 0:01:16.3]} 31... Nxb3 {[%clk
0:01:34.4]} 32. axb3 {[%clk 0:01:16.2]} 32... Rc3 {[%clk 0:01:35.3]} 33. Kf2
{[%clk 0:01:16.1]} 1/2-1/2

[Event "*** Titled Tuesday Blitz"]
[Site "Chess.com"]
[Date "2021.02.02"]
[Round "3"]
[White "tdf98pantani"]
[Black "Skat2704"]
[Result "1-0"]
[WhiteElo "2760"]
[BlackElo "2500"]
[TimeControl "180+1"]
[EndTime "10:28:41 PST"]
[Termination "tdf98pantani won by resignation"]

1. c4 {[%clk 0:03:00.9]} 1... c5 {[%clk 0:02:59.8]} 2. Nf3 {[%clk 0:03:00.4]}
2... Nc6 {[%clk 0:02:56.4]} 3. Nc3 {[%clk 0:03:00.4]} 3... g6 {[%clk 0:02:55.1]}
4. e3 {[%clk 0:02:59.8]} 4... Bg7 {[%clk 0:02:51.9]} 5. d4 {[%clk 0:02:59.8]}
5... cxd4 {[%clk 0:02:50.1]} 6. exd4 {[%clk 0:03:00.1]} 6... Nf6 {[%clk
0:02:45.6]} 7. d5 {[%clk 0:02:56.7]} 7... Nb8 {[%clk 0:02:44.6]} 8. Be2 {[%clk
0:02:54.8]} 8... O-O {[%clk 0:02:44.1]} 9. O-O {[%clk 0:02:54.9]} 9... d6 {[%clk
0:02:44.5]} 10. Re1 {[%clk 0:02:42]} 10... Nbd7 {[%clk 0:02:39.7]} 11. Bf1
{[%clk 0:02:39]} 11... Nc5 {[%clk 0:02:17.6]} 12. h3 {[%clk 0:02:38.7]} 12...
Bd7 {[%clk 0:02:14.8]} 13. Be3 {[%clk 0:02:36.5]} 13... Rc8 {[%clk 0:02:12.2]}
14. Bd4 {[%clk 0:02:36.2]} 14... a6 {[%clk 0:02:01.7]} 15. Qd2 {[%clk
0:02:29.7]} 15... e5 {[%clk 0:01:43.7]} 16. dxe6 {[%clk 0:02:29.2]} 16... Bxe6
{[%clk 0:01:43.8]} 17. Rad1 {[%clk 0:02:25.5]} 17... Qc7 {[%clk 0:01:24.9]} 18.
b3 {[%clk 0:02:24]} 18... Rfd8 {[%clk 0:01:23.8]} 19. Ng5 {[%clk 0:02:22.4]}
19... Bf5 {[%clk 0:01:17.1]} 20. g4 {[%clk 0:02:17.4]} 20... Bd7 {[%clk
0:01:15.6]} 21. Qf4 {[%clk 0:02:15.6]} 21... d5 {[%clk 0:00:52.7]} 22. Be5
{[%clk 0:02:08.3]} 22... Qc6 {[%clk 0:00:51]} 23. Nxd5 {[%clk 0:01:54.4]} 23...
Nxd5 {[%clk 0:00:35.2]} 24. Qxf7+ {[%clk 0:01:53.6]} 1-0